fUST/lending_fUST_20250727
["ID","MTS","AMOUNT","RATE_DAILY","PERIOD"]
[375179910,1753578669390,-168.0,0.00023979,2]
[375179911,1753578669400,-160.0,0.00024,7]
[375179912,1753578669410,-151.0,0.00024001,7]
[375179913,1753578669420,-707.97,0.00024001,2]
[375179914,1753578669430,-779.31,0.00024001,2]
[375179915,1753578669439,-1538.38,0.00024001,2]
[375179916,1753578669449,-460.0,0.00024001,2]
[375179917,1753578669458,-566.08732735,0.00024002,2]
[375179918,1753578669467,-488.69,0.00024002,2]
[375179919,1753578669478,-460.0,0.00024002,2]
[375179920,1753578669487,-168.0,0.00024026,2]
[375179921,1753578669496,-4015.85201903,0.00024038,10]
[375179922,1753578669506,-168.0,0.00024048,2]
[375179923,1753578669516,-1202.75,0.00024115,2]
[375179924,1753578669525,-2056.17,0.00024117,2]
[375179925,1753578669535,-619.47,0.00024117,2]
[375179926,1753578669545,-911.48,0.00024117,2]
[375179927,1753578669554,-765.98,0.00024117,2]
[375179928,1753578669564,-1129.56,0.00024117,2]
[375179929,1753578669576,-853.03,0.00024117,2]
[375179930,1753578669586,-168.0,0.0002412,2]
[375179931,1753578669596,-1059.09,0.00024166,2]
[375179932,1753578669606,-1353.43,0.00024173,2]
[375179933,1753578669616,-1539.81,0.00024173,2]
[375179934,1753578669625,-1181.02,0.00024173,2]
[375179935,1753578669639,-490.0,0.00024173,2]
[375179936,1753578669650,-540.67,0.00024175,2]
[375179937,1753578669660,-3688.06,0.00024175,2]
[375179938,1753578669671,-460.0,0.00024175,2]
[375179939,1753578669683,-591.72,0.00024175,2]
[375179940,1753578669694,-1423.65,0.00024175,2]
[375179941,1753578669704,-6872.50620048,0.00024188,2]
[375179942,1753578669714,-154.287826,0.0002419,3]
[375179943,1753578669724,-168.0,0.00024212,2]
[375179944,1753578669734,-4015.85201903,0.00024245,10]
[375179945,1753578669744,-151.0,0.00024245,7]
[375179946,1753578669753,-707.97,0.00024275,2]
[375179947,1753578669763,-779.31,0.00024275,2]
[375179948,1753578669774,-1538.38,0.00024275,2]
[375179949,1753578669784,-460.0,0.00024275,2]
[375179950,1753578669793,-488.69,0.00024276,2]
[375179951,1753578669803,-460.0,0.00024276,2]
[375179952,1753578669812,-312.16666667,0.000243,10]
[375179953,1753578669821,-150.0,0.00024309,2]
[375179954,1753578669831,-407.0,0.00024309,2]
[375179955,1753578669840,-154.287826,0.0002435,15]
[375179956,1753578669851,-1202.75,0.00024389,2]
[375179957,1753578669861,-2056.17,0.00024391,2]
[375179958,1753578669872,-619.47,0.00024391,2]
[375179959,1753578669883,-911.48,0.00024391,2]
[375179960,1753578669892,-765.98,0.00024391,2]
[375179961,1753578669902,-1129.56,0.00024391,2]
[375179962,1753578669912,-853.03,0.00024391,2]
[375179963,1753578669923,-1059.09,0.0002444,2]
[375179964,1753578669932,-1353.43,0.00024447,2]
[375179965,1753578669945,-1539.81,0.00024447,2]
[375179966,1753578669954,-1181.02,0.00024447,2]
[375179967,1753578669964,-490.0,0.00024447,2]
[375179968,1753578669974,-540.67,0.00024449,2]
[375179969,1753578669985,-3688.06,0.00024449,2]
[375179970,1753578669996,-249.26,0.00024449,2]
[375179971,1753578670006,-1423.65,0.00024449,2]
[375179972,1753578670016,-4015.85201903,0.00024452,11]
[375179973,1753578670027,-201.425766,0.00024493,7]
[375179974,1753578670037,-6872.50620048,0.00024539,2]
[375179975,1753578670047,-707.97,0.00024549,2]
[375179976,1753578670056,-779.31,0.00024549,2]
[375179977,1753578670066,-1538.38,0.00024549,2]
[375179978,1753578670075,-460.0,0.00024549,2]
[375179979,1753578670085,-488.69,0.0002455,2]
[375179980,1753578670094,-460.0,0.0002455,2]
[375179981,1753578670103,-500.0,0.00024555,2]
[375179982,1753578670112,-874.49,0.000246,7]
[375179983,1753578670122,-2265.62,0.000246,7]
[375179984,1753578670132,-21072.81,0.000246,2]
[375179985,1753578670142,-151.0,0.000246,7]
[375179986,1753578670151,-151.0,0.000246,7]
[375179987,1753578670160,-151.0,0.000246,7]
[375179988,1753578670169,-151.0,0.000246,7]
[375179989,1753578670179,-219.511052,0.000246,7]
[375179990,1753578670189,-154.287826,0.00024634,2]
[375179991,1753578670198,-4015.85201903,0.00024659,11]
[375179992,1753578670208,-1202.75,0.00024663,2]
[375179993,1753578670226,-2056.17,0.00024665,2]
[375179994,1753578670237,-619.47,0.00024665,2]
[375179995,1753578670246,-911.48,0.00024665,2]
[375179996,1753578670256,-765.98,0.00024665,2]
[375179997,1753578670267,-1129.56,0.00024665,2]
[375179998,1753578670279,-853.03,0.00024665,2]
[375179999,1753578670289,-429.9056391,0.00024712,2]
[375180000,1753578670299,-429.9056391,0.00024712,2]
[375180001,1753578670309,-429.2900619,0.00024712,2]
[375180002,1753578670319,-1059.09,0.00024714,2]
[375180003,1753578670329,-1353.43,0.00024721,2]
[375180004,1753578670339,-1539.81,0.00024721,2]
[375180005,1753578670350,-1181.02,0.00024721,2]
[375180006,1753578670359,-490.0,0.00024721,2]
[375180007,1753578670369,-540.67,0.00024723,2]
[375180008,1753578670379,-3688.06,0.00024723,2]
[375180009,1753578670389,-226.21624435,0.00024723,2]
[375180010,1753578670602,-460.0,0.00019234,2]
[375180011,1753578670612,-460.0,0.00019508,2]
[375180012,1753578670623,-460.0,0.00019517,2]
[375180013,1753578670635,-445.00000001,0.00019791,2]
[375180014,1753578670647,-14.99999999,0.00019791,2]
[375180015,1753578670656,-460.0,0.00019791,2]
[375180016,1753578670667,-460.0,0.00020065,2]
[375180017,1753578670679,-460.0,0.00021709,2]
[375180018,1753578670689,-460.0,0.00021983,2]
[375180019,1753578670699,-609.15,0.00022257,2]
[375180020,1753578670710,-1695.62,0.00022465,2]
[375180021,1753578670722,-1197.43375565,0.00024723,2]
[375180022,1753578670731,-154.287826,0.00024779,3]
[375180023,1753578670741,-168.0,0.00024782,2]
[375180024,1753578670751,-154.287826,0.000248,5]
[375180025,1753578670761,-603.0,0.00024815,2]
[375180026,1753578670770,-707.97,0.00024823,2]
[375180027,1753578670782,-779.31,0.00024823,2]
[375180028,1753578670794,-1538.38,0.00024823,2]
[375180029,1753578670804,-460.0,0.00024823,2]
[375180030,1753578670813,-488.69,0.00024824,2]
[375180031,1753578670823,-460.0,0.00024824,2]
[375180032,1753578670836,-154.287826,0.00024833,10]
[375180033,1753578670846,-238.089514,0.00024849,7]
[375180034,1753578670856,-577.6552115,0.00024849,2]
[375180035,1753578670866,-355.8844956,0.00024849,2]
[375180036,1753578670877,-577.8715194,0.00024849,2]
[375180037,1753578670887,-577.8715194,0.00024849,2]
[375180038,1753578670898,-577.2225957,0.00024849,2]
[375180039,1753578670908,-500.0,0.00024861,2]
[375180040,1753578670917,-4015.85201903,0.00024866,12]
[375180041,1753578670927,-6030.13589174,0.0002489,2]
[375180042,1753578670939,-302.37869897,0.0002489,2]
[375180043,1753578670950,-539.99160977,0.0002489,2]
[375180044,1753578670959,-49.10839023,0.000249,7]
[375180048,1753579494561,188.256673,0.00013699,2]
[375180051,1753579637150,-1183.68467554,0.00019135,2]
[375180053,1753579670458,3467.55486474,0.00018,2]
[375180054,1753579670480,4153.17803689,0.00018,2]
[375180070,1753579789131,22686.5298402,0.00018147,2]
[375180073,1753579824236,214.824821,0.00026027,120]
[375180113,1753579832827,-161.75759954,0.00019078,2]
[375180114,1753579832836,-151.0,0.000191,2]
[375180116,1753579832846,-151.0,0.000191,2]
[375180118,1753579832855,-2447.28350266,0.00019135,2]
[375180121,1753579832866,-238.82,0.0001914,3]
[375180123,1753579832875,-716.48,0.0001914,3]
[375180125,1753579832885,-300.0,0.00019148,2]
[375180126,1753579832895,-222.0,0.00019148,2]
[375180128,1753579832904,-248.0,0.00019148,2]
[375180130,1753579832914,-99.48669047,0.00019149,2]
[375180135,1753579832927,-451.19096014,0.00019149,2]
[375180137,1753579832941,-500.0,0.00019149,2]
[375180140,1753579832951,-500.0,0.00019149,2]
[375180143,1753579832959,-500.0,0.00019149,2]
[375180145,1753579832970,-500.0,0.00019149,2]
[375180147,1753579832980,-500.0,0.00019149,2]
[375180149,1753579832990,-500.0,0.00019149,2]
[375180151,1753579832999,-500.0,0.00019149,2]
[375180153,1753579833009,-500.0,0.00019149,2]
[375180155,1753579833021,-500.0,0.00019149,2]
[375180157,1753579833031,-500.0,0.00019149,2]
[375180159,1753579833045,-500.0,0.00019149,2]
[375180161,1753579833054,-500.0,0.00019149,2]
[375180163,1753579833063,-500.0,0.00019149,2]
[375180165,1753579833073,-500.0,0.00019149,2]
[375180166,1753579833083,-500.0,0.00019149,2]
[375180169,1753579833092,-500.0,0.00019149,2]
[375180170,1753579833102,-500.0,0.00019149,2]
[375180172,1753579833111,-500.0,0.00019149,2]
[375180174,1753579833121,-500.0,0.00019149,2]
[375180176,1753579833131,-500.0,0.00019149,2]
[375180178,1753579833141,-500.0,0.00019149,2]
[375180180,1753579833150,-500.0,0.00019149,2]
[375180182,1753579833159,-187.75872658,0.00019149,2]
[375180184,1753579833169,-500.0,0.00019149,2]
[375180186,1753579833178,-500.0,0.00019149,2]
[375180188,1753579833187,-500.0,0.00019149,2]
[375180190,1753579833196,-500.0,0.00019149,2]
[375180192,1753579833206,-500.0,0.00019149,2]
[375180194,1753579833216,-500.0,0.00019149,2]
[375180196,1753579833225,-500.0,0.00019149,2]
[375180198,1753579833235,-500.0,0.00019149,2]
[375180200,1753579833245,-500.0,0.00019149,2]
[375180202,1753579833255,-500.0,0.00019149,2]
[375180204,1753579833268,-500.0,0.00019149,2]
[375180206,1753579833277,-500.0,0.00019149,2]
[375180208,1753579833287,-500.0,0.00019149,2]
[375180210,1753579833297,-500.0,0.00019149,2]
[375180212,1753579833307,-500.0,0.00019149,2]
[375180214,1753579833316,-500.0,0.00019149,2]
[375180216,1753579833325,-484.39355779,0.00019149,2]
[375180218,1753579833335,-476.1078385,0.00019149,2]
[375180220,1753579833344,-500.0,0.00019149,2]
[375180222,1753579833354,-500.0,0.00019149,2]
[375180224,1753579833363,-500.0,0.00019149,2]
[375180226,1753579833374,-500.0,0.00019149,2]
[375180228,1753579833384,-500.0,0.00019149,2]
[375180230,1753579833394,-500.0,0.00019149,2]
[375180232,1753579833404,-500.0,0.00019149,2]
[375180234,1753579833414,-500.0,0.00019149,2]
[375180236,1753579833430,-590.29288997,0.00019149,2]
[375180238,1753579833441,-500.0,0.00019149,2]
[375180240,1753579833451,-500.0,0.00019149,2]
[375180242,1753579833461,-500.0,0.00019149,2]
[375180244,1753579833471,-500.0,0.00019149,2]
[375180246,1753579833480,-500.0,0.00019149,2]
[375180248,1753579833491,-500.0,0.00019149,2]
[375180250,1753579833501,-500.0,0.00019149,2]
[375180252,1753579833513,-500.0,0.00019149,2]
[375180254,1753579833523,-500.0,0.00019149,2]
[375180256,1753579833532,-500.0,0.00019149,2]
[375180258,1753579833541,-411.28939023,0.00019149,2]
[375180260,1753579833551,-500.0,0.00019149,2]
[375180262,1753579833561,-500.0,0.00019149,2]
[375180264,1753579833572,-500.0,0.00019149,2]
[375180266,1753579833582,-500.0,0.00019149,2]
[375180268,1753579833591,-500.0,0.00019149,2]
[375180270,1753579833601,-500.0,0.00019149,2]
[375180272,1753579833612,-500.0,0.00019149,2]
[375180274,1753579833622,-500.0,0.00019149,2]
[375180276,1753579833632,-500.0,0.00019149,2]
[375180278,1753579833641,-500.0,0.00019149,2]
[375180280,1753579833651,-500.0,0.00019149,2]
[375180282,1753579833660,-500.0,0.00019149,2]
[375180284,1753579833669,-500.0,0.00019149,2]
[375180286,1753579833679,-290.74263897,0.00019149,2]
[375180288,1753579833689,-500.0,0.00019149,2]
[375180289,1753579833698,-500.0,0.00019149,2]
[375180290,1753579833709,-500.0,0.00019149,2]
[375180291,1753579833719,-500.0,0.00019149,2]
[375180292,1753579833728,-500.0,0.00019149,2]
[375180293,1753579833738,-400.0,0.00019149,2]
[375180294,1753579833748,-500.0,0.00019149,2]
[375180295,1753579833758,-500.0,0.00019149,2]
[375180296,1753579833771,-500.0,0.00019149,2]
[375180297,1753579833780,-500.0,0.00019149,2]
[375180298,1753579833789,-200.0,0.00019149,2]
[375180299,1753579833798,-500.0,0.00019149,2]
[375180300,1753579833808,-500.0,0.00019149,2]
[375180301,1753579833817,-500.0,0.00019149,2]
[375180302,1753579833826,-500.0,0.00019149,2]
[375180303,1753579833835,-500.0,0.00019149,2]
[375180304,1753579833844,-150484.58343147,0.0001915,2]
[375180305,1753579833857,-960.05583154,0.0001915,2]
[375180306,1753579833869,-265.22182124,0.0001915,2]
[375180307,1753579833881,-808.65251249,0.0001915,2]
[375180372,1753579838734,-6589.10434455,0.0001915,2]
[375180373,1753579838746,-1166.75717017,0.0001915,2]
[375180374,1753579838826,-865588.80515533,0.0001915,2]
[375180375,1753579838838,-158.475077,0.00019178,2]
[375180376,1753579838847,-782.73,0.00019222,3]
[375180377,1753579838858,-50000.0,0.00019228,2]
[375180378,1753579838868,-1200.0,0.00019228,2]
[375180379,1753579838881,-460.0,0.00019228,2]
[375180380,1753579838892,-460.0,0.00019228,2]
[375180381,1753579838904,-460.0,0.00019228,2]
[375180382,1753579838913,-460.0,0.00019228,2]
[375180383,1753579838923,-460.0,0.00019228,2]
[375180384,1753579838934,-1051.87,0.00019228,2]
[375180385,1753579838943,-460.0,0.00019228,2]
[375180387,1753579838953,-460.0,0.00019228,2]
[375180388,1753579838962,-460.0,0.00019228,2]
[375180389,1753579838972,-460.0,0.00019228,2]
[375180390,1753579838982,-460.0,0.00019228,2]
[375180391,1753579838992,-461.63794481,0.00019228,2]
[375180392,1753579839002,-460.0,0.00019228,2]
[375180393,1753579839012,-375.81629734,0.00019228,2]
[375180394,1753579839021,-460.0,0.0001923,2]
[375180395,1753579839031,-460.0,0.0001923,2]
[375180396,1753579839044,-463.01333329,0.0001923,2]
[375180397,1753579839054,-460.0,0.0001923,2]
[375180398,1753579839063,-353.62368527,0.0001923,2]
[375180399,1753579839073,-462.68276146,0.0001923,2]
[375180400,1753579839083,-460.0,0.0001923,2]
[375180401,1753579839092,-460.0,0.0001923,2]
[375180402,1753579839102,-451.89458919,0.0001923,2]
[375180403,1753579839113,-460.0,0.0001923,2]
[375180404,1753579839122,-460.0,0.0001923,2]
[375180405,1753579839131,-460.0,0.0001923,2]
[375180406,1753579839141,-460.0,0.0001923,2]
[375180407,1753579839150,-460.0,0.0001923,2]
[375180408,1753579839159,-460.0,0.0001923,2]
[375180409,1753579839169,-460.0,0.0001923,2]
[375180410,1753579839178,-461.94989761,0.0001923,2]
[375180411,1753579839188,-1156.79,0.0001923,2]
[375180412,1753579839197,-460.0,0.0001923,2]
[375180413,1753579839206,-460.0,0.0001923,2]
[375180414,1753579839216,-460.0,0.0001923,2]
[375180415,1753579839225,-460.0,0.0001923,2]
[375180416,1753579839235,-971.44,0.0001923,2]
[375180417,1753579839244,-460.0,0.0001923,2]
[375180418,1753579839253,-460.0,0.0001923,2]
[375180419,1753579839264,-460.0,0.0001923,2]
[375180420,1753579839273,-1093.51,0.0001923,2]
[375180421,1753579839283,-460.0,0.0001923,2]
[375180422,1753579839293,-460.0,0.0001923,2]
[375180423,1753579839303,-460.0,0.0001923,2]
[375180424,1753579839312,-460.0,0.0001923,2]
[375180425,1753579839322,-468.34,0.0001923,2]
[375180426,1753579839332,-460.0,0.0001923,2]
[375180427,1753579839342,-460.0,0.0001923,2]
[375180428,1753579839351,-460.0,0.0001923,2]
[375180429,1753579839361,-460.0,0.0001923,2]
[375180430,1753579839370,-460.0,0.00019231,2]
[375180431,1753579839380,-460.0,0.00019231,2]
[375180432,1753579839389,-460.0,0.00019231,2]
[375180433,1753579839399,-460.0,0.00019231,2]
[375180434,1753579839408,-460.0,0.00019231,2]
[375180435,1753579839418,-460.0,0.00019231,2]
[375180436,1753579839427,-460.0,0.00019231,2]
[375180437,1753579839437,-460.0,0.00019231,2]
[375180438,1753579839447,-460.0,0.00019231,2]
[375180439,1753579839456,-460.0,0.00019231,2]
[375180440,1753579839467,-460.0,0.00019231,2]
[375180441,1753579839476,-460.0,0.00019231,2]
[375180442,1753579839486,-460.0,0.00019231,2]
[375180443,1753579839495,-460.0,0.00019231,2]
[375180444,1753579839505,-501.4109676,0.00019231,2]
[375180445,1753579839515,-460.0,0.00019231,2]
[375180446,1753579839525,-408.50999814,0.00019231,2]
[375180447,1753579839535,-460.0,0.00019231,2]
[375180448,1753579839545,-351.06,0.00019231,2]
[375180449,1753579839555,-460.0,0.00019231,2]
[375180450,1753579839564,-460.0,0.00019231,2]
[375180451,1753579839574,-460.0,0.00019231,2]
[375180452,1753579839584,-460.0,0.00019231,2]
[375180453,1753579839593,-460.0,0.00019231,2]
[375180454,1753579839603,-460.0,0.00019231,2]
[375180455,1753579839613,-460.0,0.00019231,2]
[375180456,1753579839622,-460.0,0.00019231,2]
[375180457,1753579839632,-460.0,0.00019231,2]
[375180458,1753579839642,-460.0,0.00019231,2]
[375180459,1753579839651,-155.0,0.00019231,2]
[375180460,1753579839661,-460.0,0.00019231,2]
[375180461,1753579839671,-460.0,0.00019231,2]
[375180462,1753579839680,-460.0,0.00019231,2]
[375180463,1753579839690,-460.0,0.00019231,2]
[375180464,1753579839700,-460.0,0.00019231,2]
[375180465,1753579839709,-161.9,0.00019231,2]
[375180466,1753579839719,-460.0,0.00019231,2]
[375180467,1753579839729,-460.0,0.00019231,2]
[375180468,1753579839738,-460.0,0.00019231,2]
[375180469,1753579839748,-460.0,0.00019231,2]
[375180470,1753579839758,-460.0,0.00019231,2]
[375180471,1753579839768,-460.0,0.00019231,2]
[375180472,1753579839777,-460.0,0.00019231,2]
[375180473,1753579839787,-460.0,0.00019231,2]
[375180474,1753579839796,-460.0,0.00019231,2]
[375180475,1753579839806,-460.0,0.00019231,2]
[375180476,1753579839816,-460.0,0.00019231,2]
[375180477,1753579839826,-460.0,0.00019231,2]
[375180478,1753579839836,-460.0,0.00019231,2]
[375180479,1753579839845,-460.0,0.00019231,2]
[375180480,1753579839854,-460.0,0.00019231,2]
[375180481,1753579839864,-460.0,0.00019231,2]
[375180482,1753579839874,-460.0,0.00019231,2]
[375180483,1753579839883,-460.0,0.00019231,2]
[375180484,1753579839894,-460.0,0.00019231,2]
[375180485,1753579839903,-460.0,0.00019231,2]
[375180486,1753579839913,-460.0,0.00019232,2]
[375180487,1753579839923,-460.0,0.00019232,2]
[375180488,1753579839933,-460.0,0.00019232,2]
[375180489,1753579839942,-460.0,0.00019232,2]
[375180490,1753579839952,-460.0,0.00019232,2]
[375180491,1753579839962,-460.0,0.00019232,2]
[375180492,1753579839971,-460.0,0.00019232,2]
[375180493,1753579839981,-460.0,0.00019232,2]
[375180494,1753579839991,-460.0,0.00019232,2]
[375180495,1753579840000,-460.0,0.00019232,2]
[375180496,1753579840010,-460.0,0.00019232,2]
[375180497,1753579840021,-460.0,0.00019232,2]
[375180498,1753579840030,-460.0,0.00019232,2]
[375180499,1753579840043,-460.0,0.00019232,2]
[375180500,1753579840053,-506.82056033,0.00019232,2]
[375180501,1753579840063,-460.0,0.00019232,2]
[375180502,1753579840072,-460.0,0.00019232,2]
[375180503,1753579840082,-460.0,0.00019232,2]
[375180504,1753579840092,-460.0,0.00019232,2]
[375180505,1753579840101,-460.0,0.00019232,2]
[375180506,1753579840111,-460.0,0.00019232,2]
[375180507,1753579840121,-460.5025434,0.00019232,2]
[375180508,1753579840130,-571.72319245,0.00019232,2]
[375180509,1753579840140,-460.0,0.00019232,2]
[375180510,1753579840149,-460.0,0.00019232,2]
[375180511,1753579840159,-460.0,0.00019232,2]
[375180512,1753579840168,-460.0,0.00019232,2]
[375180513,1753579840178,-460.0,0.00019232,2]
[375180514,1753579840188,-373.50511539,0.00019232,2]
[375180515,1753579840199,-460.0,0.00019232,2]
[375180516,1753579840208,-460.0,0.00019232,2]
[375180517,1753579840218,-1000.0,0.00019232,2]
[375180518,1753579840227,-463.46793694,0.00019232,2]
[375180519,1753579840237,-460.0,0.00019232,2]
[375180520,1753579840246,-460.0,0.00019232,2]
[375180521,1753579840265,-562.81584063,0.00019232,2]
[375180522,1753579840276,-460.0,0.00019232,2]
[375180523,1753579840286,-460.0,0.00019232,2]
[375180524,1753579840295,-378.06606047,0.00019232,2]
[375180525,1753579840305,-460.0,0.00019232,2]
[375180526,1753579840314,-460.0,0.00019232,2]
[375180527,1753579840324,-460.0,0.00019232,2]
[375180528,1753579840333,-460.0,0.00019232,2]
[375180529,1753579840342,-607.65974392,0.00019232,2]
[375180530,1753579840352,-460.0,0.00019232,2]
[375180531,1753579840362,-460.0,0.00019232,2]
[375180532,1753579840371,-460.30174636,0.00019232,2]
[375180533,1753579840381,-460.0,0.00019232,2]
[375180534,1753579840390,-460.0,0.00019232,2]
[375180535,1753579840400,-460.0,0.00019232,2]
[375180536,1753579840409,-460.0,0.00019232,2]
[375180537,1753579840419,-460.0,0.00019232,2]
[375180538,1753579840428,-451.35645911,0.00019232,2]
[375180539,1753579840437,-470.66558451,0.00019232,2]
[375180540,1753579840447,-460.0,0.00019232,2]
[375180541,1753579840457,-460.0,0.00019232,2]
[375180542,1753579840467,-460.0,0.00019232,2]
[375180547,1753579840609,-460.0,0.00019232,2]
[375180548,1753579840619,-460.0,0.00019232,2]
[375180549,1753579840628,-460.0,0.00019232,2]
[375180550,1753579840637,-460.0,0.00019232,2]
[375180552,1753579840647,-460.0,0.00019232,2]
[375180554,1753579840656,-460.0,0.00019232,2]
[375180555,1753579840665,-460.0,0.00019232,2]
[375180557,1753579840674,-460.0,0.00019232,2]
[375180559,1753579840684,-460.0,0.00019232,2]
[375180562,1753579840694,-462.81519732,0.00019232,2]
[375180563,1753579840703,-460.00000003,0.00019232,2]
[375180566,1753579840713,-460.0,0.00019232,2]
[375180567,1753579840722,-460.0,0.00019232,2]
[375180569,1753579840733,-1690.36,0.00019232,2]
[375180572,1753579840744,-460.0,0.00019232,2]
[375180573,1753579840754,-460.0,0.00019232,2]
[375180575,1753579840767,-460.0,0.00019232,2]
[375180577,1753579840782,-460.0,0.00019232,2]
[375180579,1753579840791,-567.32,0.00019232,2]
[375180581,1753579840800,-460.0,0.00019232,2]
[375180583,1753579840810,-721.25,0.00019232,2]
[375180585,1753579840819,-466.93380232,0.00019232,2]
[375180587,1753579840829,-460.0,0.00019232,2]
[375180589,1753579840839,-460.0,0.00019232,2]
[375180591,1753579840848,-460.0,0.00019232,2]
[375180593,1753579840858,-460.0,0.00019232,2]
[375180595,1753579840868,-302.01,0.00019232,2]
[375180597,1753579840878,-461.87328598,0.00019232,2]
[375180599,1753579840887,-467.25968795,0.00019232,2]
[375180601,1753579840897,-460.0,0.00019232,2]
[375180603,1753579840906,-460.0,0.00019232,2]
[375180605,1753579840915,-460.0,0.00019232,2]
[375180607,1753579840925,-460.0,0.00019232,2]
[375180609,1753579840934,-460.0,0.00019232,2]
[375180611,1753579840943,-460.0,0.00019232,2]
[375180613,1753579840953,-460.0,0.00019232,2]
[375180615,1753579840963,-460.0,0.00019232,2]
[375180617,1753579840972,-551.31,0.00019232,2]
[375180619,1753579840982,-460.0,0.00019232,2]
[375180621,1753579840992,-460.0,0.00019232,2]
[375180623,1753579841003,-460.0,0.00019232,2]
[375180625,1753579841013,-460.0,0.00019232,2]
[375180627,1753579841026,-460.0,0.00019232,2]
[375180629,1753579841039,-460.0,0.00019232,2]
[375180631,1753579841059,-460.0,0.00019232,2]
[375180633,1753579841082,-677.77,0.00019232,2]
[375180635,1753579841093,-602.63,0.00019232,2]
[375180637,1753579841102,-197.45134734,0.00019232,2]
[375180639,1753579841112,-460.0,0.00019232,2]
[375180641,1753579841121,-460.0,0.00019232,2]
[375180643,1753579841131,-460.0,0.00019232,2]
[375180645,1753579841140,-460.0,0.00019232,2]
[375180647,1753579841150,-460.0,0.00019232,2]
[375180649,1753579841159,-460.0,0.00019232,2]
[375180651,1753579841168,-460.0,0.00019232,2]
[375180653,1753579841178,-460.0,0.00019232,2]
[375180655,1753579841188,-1441.82,0.00019232,2]
[375180657,1753579841197,-460.0,0.00019232,2]
[375180659,1753579841208,-326.52986166,0.00019232,2]
[375180661,1753579841218,-460.0,0.00019232,2]
[375180663,1753579841227,-460.0,0.00019232,2]
[375180665,1753579841236,-460.0,0.00019234,2]
[375180667,1753579841246,-461.28992641,0.00019234,2]
[375180669,1753579841255,-460.0,0.00019234,2]
[375180671,1753579841265,-500.0,0.00019234,2]
[375180673,1753579841274,-559.4143089,0.00019234,2]
[375180675,1753579841284,-460.0,0.00019234,2]
[375180677,1753579841295,-460.0,0.00019234,2]
[375180679,1753579841304,-461.81767624,0.00019234,2]
[375180681,1753579841313,-500.0,0.00019235,2]
[375180683,1753579841322,-500.0,0.00019235,2]
[375180685,1753579841331,-500.0,0.00019241,2]
[375180686,1753579841341,-500.0,0.00019242,2]
[375180688,1753579841351,-500.0,0.00019242,2]
[375180691,1753579841361,-460.0,0.00019243,2]
[375180692,1753579841370,-460.0,0.00019243,2]
[375180694,1753579841380,-460.0,0.00019243,2]
[375180697,1753579841390,-460.0,0.00019243,2]
[375180698,1753579841399,-460.0,0.00019243,2]
[375180701,1753579841409,-460.0,0.00019243,2]
[375180702,1753579841419,-152.43128864,0.00019243,2]
[375180704,1753579841428,-460.0,0.00019243,2]
[375180706,1753579841437,-460.0,0.00019243,2]